[Event "European Women Rapid-ch 2023"]
[Site "Monaco"]
[Date "2024.01.14"]
[Round "7.7"]
[White "Hryshchenko, Kamila"]
[Black "Batsiashvili, Nino"]
[Result "0-1"]
[ECO "B01"]
[WhiteElo "2192"]
[BlackElo "2451"]
[Annotator "RC"]
[PlyCount "88"]
[EventDate "2023.12.19"]
[EventType "swiss"]
[EventCountry "MNC"]
[SourceTitle "playchess.com"]
[Source "ChessBase"]
[SourceQuality "1"]
[TimeControl "900+10"]

1. e4 {[%emt 0:00:02]} d5 {[%emt 0:00:01]} 2. exd5 {[%emt 0:00:04]} Qxd5 {[%emt 0:00:01]} 3. Nc3 {[%emt 0:00:02]} Qa5 {[%emt 0:00:01]} 4. d4 {[%emt 0:00:04]} Nf6 {[%emt 0:00:01]} 5. Nf3 {[%emt 0:00:02]} Bf5 {[%emt 0:00:12]} 6. Bc4 {[%emt 0:00:16]} e6 {[%emt 0:00:10]} 7. O-O {[%emt 0:00:22]} c6 {[%emt 0:00:40]} 8. Re1 {[%emt 0:00:33]} Be7 {[%emt 0:00:10]} 9. Bd2 {[%emt 0:00:37]} Qc7 {[%emt 0:01:26]} 10. Ne2 {[%emt 0:00:19]} Nbd7 {[%emt 0:00:35]} 11. Bf4 {[%emt 0:00:30]} Qb6 {[%emt 0:00:32]} 12. Ng3 {[%emt 0:00:50]} Bg6 {[%emt 0:00:25]} 13. Bb3 {[%emt 0:00:37]} a5 {[%emt 0:00:29]} 14. a4 {[%emt 0:00:40]} Nd5 {[%emt 0:01:20]} 15. Bg5 {[%emt 0:00:57]} Bxg5 {[%emt 0:02:04]} 16. Nxg5 {[%emt 0:00:03]} O-O-O {[%emt 0:01:44]} 17. Qd2 {[%emt 0:01:43]} N7f6 {[%emt 0:00:29]} 18. Nf3 {[%emt 0:00:16]} Nb4 {[%emt 0:01:13]} 19. Re5 {[%emt 0:02:16]} h5 {[%emt 0:01:48]} 20. h4 {[%emt 0:01:04]} Ng4 {[%emt 0:00:40]} 21. Re2 {[%emt 0:00:37]} Rd7 {[%emt 0:01:15]} 22. c3 {[%emt 0:00:25]} Nd5 {[%emt 0:00:14]} 23. Bc4 {[%emt 0:00:25]} Rhd8 {[%emt 0:00:22]} 24. Ne5 {[%emt 0:01:01]} Nxe5 {[%emt 0:00:08]} 25. Rxe5 {[%emt 0:00:02]} Qc7 {[%emt 0:00:19]} 26. Qe1 {[%emt 0:01:02]} Nf6 {[%emt 0:00:04]} 27. b4 {[%emt 0:01:46]} axb4 {[%emt 0:00:03]} 28. a5 {[%emt 0:00:02]} Kb8 {[%emt 0:00:15]} 29. a6 {[%emt 0:00:48]} b6 {[%emt 0:00:27]} 30. Ne2 {[%emt 0:00:23]} Ng4 {[%emt 0:00:04]} 31. f4 {[%emt 0:01:18]} Nxe5 {[%emt 0:00:21]} 32. fxe5 {[%emt 0:00:02]} Ka7 {[%emt 0:00:02]} 33. Qg3 {[%emt 0:00:35]} b5 {[%emt 0:00:40]} 34. Bxe6 {[%emt 0:00:22]} fxe6 {[%emt 0:00:03]} 35. Qxg6 {[%emt 0:00:01]} bxc3 {[%emt 0:00:05]} 36. Qxe6 {[%emt 0:00:06]} Qb6 {[%emt 0:00:17]} 37. Kh1 {[%emt 0:00:20]} c2 {[%emt 0:00:29]} 38. Qf5 {[%emt 0:00:14]} Rxd4 {[%emt 0:00:11]} 39. Nxd4 {[%emt 0:00:07]} Qxd4 {[%emt 0:00:01]} 40. Rf1 {[%emt 0:00:38]} Qxh4+ {[%emt 0:00:06]} 41. Kg1 {[%emt 0:00:02]} Qd4+ {[%emt 0:00:01]} 42. Kh1 {[%emt 0:00:01]} Qd1 {[%emt 0:00:48]} 43. Qf7+ {[%emt 0:00:25]} Kxa6 {[%emt 0:00:05]} 44. Kh2 {[%emt 0:00:15]} c1=Q {[%emt 0:00:10]} 0-1

[Event "European Women Rapid-ch 2023"]
[Site "Monaco"]
[Date "2024.01.14"]
[Round "7.8"]
[White "Unuk, Laura"]
[Black "Schippke, Manon"]
[Result "1/2-1/2"]
[ECO "D00"]
[WhiteElo "2346"]
[BlackElo "2162"]
[Annotator "RC"]
[PlyCount "83"]
[EventDate "2023.12.19"]
[EventType "swiss"]
[EventCountry "MNC"]
[SourceTitle "playchess.com"]
[Source "ChessBase"]
[SourceQuality "1"]
[TimeControl "900+10"]

1. d4 {[%emt 0:00:02]} d5 {[%emt 0:00:01]} 2. Bf4 {[%emt 0:00:08]} c5 {[%emt 0:00:04]} 3. e3 {[%emt 0:00:01]} Nf6 {[%emt 0:00:06]} 4. Nc3 {[%emt 0:00:36]} a6 {[%emt 0:00:38]} 5. dxc5 {[%emt 0:00:03]} Nc6 {[%emt 0:00:37]} 6. Nf3 {[%emt 0:00:03]} e6 {[%emt 0:01:14]} 7. Na4 {[%emt 0:00:04]} Nd7 {[%emt 0:00:06]} 8. Qd2 {[%emt 0:04:03]} Nxc5 {[%emt 0:00:21]} 9. Nxc5 {[%emt 0:00:03]} Bxc5 {[%emt 0:00:03]} 10. O-O-O {[%emt 0:00:06]} O-O {[%emt 0:00:25]} 11. Kb1 {[%emt 0:00:14]} b5 {[%emt 0:01:01]} 12. h4 {[%emt 0:00:14]} Re8 {[%emt 0:02:02]} 13. h5 {[%emt 0:02:01]} h6 {[%emt 0:01:50]} 14. Ne5 {[%emt 0:01:15]} Nxe5 {[%emt 0:00:09]} 15. Bxe5 {[%emt 0:00:02]} Bb7 {[%emt 0:00:46]} 16. Bxg7 {[%emt 0:00:10]} Kxg7 {[%emt 0:00:38]} 17. Qc3+ {[%emt 0:00:04]} e5 {[%emt 0:00:01]} 18. Qxc5 {[%emt 0:00:03]} Rc8 {[%emt 0:00:02]} 19. Qb4 {[%emt 0:01:00]} Qf6 {[%emt 0:01:07]} 20. Be2 {[%emt 0:01:41]} d4 {[%emt 0:01:08]} 21. Bf3 {[%emt 0:03:11]} Rc4 {[%emt 0:01:10]} 22. Qd2 {[%emt 0:00:10]} Bxf3 {[%emt 0:00:34]} 23. gxf3 {[%emt 0:00:02]} Rec8 {[%emt 0:01:11]} 24. Rhg1+ {[%emt 0:01:44]} Kh7 {[%emt 0:00:18]} 25. Qd3+ {[%emt 0:01:18]} Kh8 {[%emt 0:00:02]} 26. exd4 {[%emt 0:00:02]} Rxd4 {[%emt 0:00:04]} 27. Qe3 {[%emt 0:00:30]} Rf4 {[%emt 0:00:01]} 28. Rd3 {[%emt 0:00:19]} Qf5 {[%emt 0:01:08]} 29. Qd2 {[%emt 0:00:13]} Kh7 {[%emt 0:00:56]} 30. Rd6 {[%emt 0:00:25]} Qxh5 {[%emt 0:00:31]} 31. Rd8 {[%emt 0:00:18]} Rc6 {[%emt 0:00:56]} 32. a3 {[%emt 0:00:09]} Qxf3 {[%emt 0:00:18]} 33. Rgg8 {[%emt 0:00:07]} Qh1+ {[%emt 0:00:48]} 34. Ka2 {[%emt 0:00:02]} Qe4 {[%emt 0:00:18]} 35. Rh8+ {[%emt 0:00:16]} Kg6 {[%emt 0:00:01]} 36. Rd6+ {[%emt 0:00:12]} Kg5 {[%emt 0:00:07]} 37. Rhxh6 {[%emt 0:00:15]} Qc4+ {[%emt 0:00:01]} 38. Kb1 {[%emt 0:00:04]} Qf1+ {[%emt 0:00:02]} 39. Ka2 {[%emt 0:00:04]} Qc4+ {[%emt 0:00:02]} 40. Kb1 {[%emt 0:00:03]} Qf1+ {[%emt 0:00:01]} 41. Ka2 {[%emt 0:00:01]} Qc4+ {[%emt 0:00:02]} 42. Kb1 {[%emt 0:00:01]} 1/2-1/2

[Event "European Women Rapid-ch 2023"]
[Site "Monaco"]
[Date "2024.01.14"]
[Round "7.9"]
[White "Schulze, Lara"]
[Black "Salimova, Nurgyul"]
[Result "0-1"]
[ECO "B13"]
[WhiteElo "2285"]
[BlackElo "2426"]
[Annotator "RC"]
[PlyCount "98"]
[EventDate "2023.12.19"]
[EventType "swiss"]
[EventCountry "MNC"]
[SourceTitle "playchess.com"]
[Source "ChessBase"]
[SourceQuality "1"]
[TimeControl "900+10"]

1. e4 {[%emt 0:00:03]} c6 {[%emt 0:00:28]} 2. d4 {[%emt 0:00:03]} d5 {[%emt 0:00:02]} 3. exd5 cxd5 {[%emt 0:00:10]} 4. Nf3 {[%emt 0:00:04]} Nc6 {[%emt 0:00:01]} 5. c3 {[%emt 0:00:03]} Nf6 {[%emt 0:00:07]} 6. Ne5 {[%emt 0:00:03]} a6 {[%emt 0:00:05]} 7. Bd3 {[%emt 0:00:21]} g6 {[%emt 0:01:31]} 8. O-O {[%emt 0:00:40]} Bg7 {[%emt 0:00:02]} 9. Re1 {[%emt 0:00:34]} O-O {[%emt 0:00:14]} 10. Nd2 {[%emt 0:01:48]} Nxe5 {[%emt 0:00:38]} 11. dxe5 {[%emt 0:00:26]} Nd7 {[%emt 0:00:01]} 12. Nf3 {[%emt 0:01:08]} Nc5 {[%emt 0:00:04]} 13. Nd4 {[%emt 0:00:46]} Qc7 {[%emt 0:00:57]} 14. Bf4 {[%emt 0:01:01]} f6 {[%emt 0:03:27]} 15. exf6 {[%emt 0:01:22]} Qxf4 {[%emt 0:00:03]} 16. fxg7 {[%emt 0:00:02]} Rf7 {[%emt 0:00:46]} 17. b4 {[%emt 0:01:33]} Qxf2+ {[%emt 0:01:45]} 18. Kh1 {[%emt 0:00:02]} Bg4 {[%emt 0:01:35]} 19. Qb1 {[%emt 0:01:57]} Nxd3 {[%emt 0:01:09]} 20. Qxd3 {[%emt 0:00:03]} Rc8 {[%emt 0:00:41]} 21. h3 {[%emt 0:00:34]} Bf5 {[%emt 0:01:09]} 22. Nxf5 {[%emt 0:02:38]} Qxf5 {[%emt 0:00:02]} 23. Qxf5 {[%emt 0:00:29]} gxf5 {[%emt 0:00:02]} 24. Rad1 {[%emt 0:00:02]} Rxc3 {[%emt 0:00:15]} 25. Rxd5 {[%emt 0:00:02]} Kxg7 {[%emt 0:00:02]} 26. Re6 {[%emt 0:00:37]} Rc7 {[%emt 0:01:39]} 27. Rde5 {[%emt 0:00:08]} Kf8 {[%emt 0:00:19]} 28. Kh2 {[%emt 0:00:04]} Ke8 {[%emt 0:00:04]} 29. Rd6 {[%emt 0:01:17]} Rc2 {[%emt 0:00:41]} 30. Rb6 {[%emt 0:00:15]} Rg7 {[%emt 0:00:09]} 31. Kg1 {[%emt 0:00:34]} Rgxg2+ {[%emt 0:00:21]} 32. Kf1 {[%emt 0:00:08]} Rcf2+ {[%emt 0:00:07]} 33. Ke1 {[%emt 0:00:01]} Rxa2 {[%emt 0:00:04]} 34. Kf1 {[%emt 0:00:13]} Raf2+ {[%emt 0:00:12]} 35. Ke1 {[%emt 0:00:01]} Rb2 {[%emt 0:00:04]} 36. Kf1 {[%emt 0:00:02]} Rh2 {[%emt 0:00:25]} 37. Kg1 {[%emt 0:00:11]} Rhe2 {[%emt 0:00:26]} 38. Rxf5 {[%emt 0:00:10]} Re1+ {[%emt 0:00:02]} 39. Rf1 {[%emt 0:00:01]} Rxf1+ {[%emt 0:00:06]} 40. Kxf1 {[%emt 0:00:01]} a5 {[%emt 0:00:15]} 41. Rxb7 {[%emt 0:00:25]} axb4 {[%emt 0:00:21]} 42. Rb8+ {[%emt 0:00:06]} Kd7 {[%emt 0:00:10]} 43. Rh8 {[%emt 0:00:03]} b3 {[%emt 0:00:07]} 44. Rb8 {[%emt 0:00:43]} Rb1+ {[%emt 0:00:02]} 45. Kg2 {[%emt 0:00:03]} b2 {[%emt 0:00:15]} 46. Rb3 {[%emt 0:00:03]} e5 {[%emt 0:00:09]} 47. Rb8 {[%emt 0:00:08]} e4 {[%emt 0:00:06]} 48. Rb3 {[%emt 0:00:10]} e3 {[%emt 0:00:29]} 49. Rxe3 {[%emt 0:00:32]} Rd1 {[%emt 0:00:11]} 0-1

[Event "European Women Rapid-ch 2023"]
[Site "Monaco"]
[Date "2024.01.14"]
[Round "7.10"]
[White "Hunt, Harriet V"]
[Black "Lazarne Vajda, Szidonia"]
[Result "1-0"]
[ECO "C65"]
[WhiteElo "2306"]
[BlackElo "2283"]
[Annotator "RC"]
[PlyCount "119"]
[EventDate "2023.12.19"]
[EventType "swiss"]
[EventCountry "MNC"]
[SourceTitle "playchess.com"]
[Source "ChessBase"]
[SourceQuality "1"]
[TimeControl "900+10"]

1. e4 {[%emt 0:00:02]} e5 {[%emt 0:00:02]} 2. Nf3 {[%emt 0:00:02]} Nc6 {[%emt 0:00:01]} 3. Bb5 {[%emt 0:00:02]} Nf6 {[%emt 0:00:02]} 4. d3 {[%emt 0:00:02]} Bc5 {[%emt 0:00:01]} 5. c3 {[%emt 0:00:05]} O-O {[%emt 0:00:18]} 6. O-O {[%emt 0:00:03]} d6 {[%emt 0:00:48]} 7. h3 {[%emt 0:00:21]} h6 {[%emt 0:00:06]} 8. Re1 {[%emt 0:00:21]} a6 {[%emt 0:00:23]} 9. Ba4 {[%emt 0:00:28]} b5 {[%emt 0:00:04]} 10. Bc2 {[%emt 0:00:09]} Bb7 {[%emt 0:00:03]} 11. Nbd2 {[%emt 0:00:17]} Re8 {[%emt 0:01:32]} 12. a4 {[%emt 0:01:40]} d5 {[%emt 0:00:47]} 13. Qe2 {[%emt 0:00:12]} b4 {[%emt 0:01:07]} 14. a5 {[%emt 0:00:49]} d4 {[%emt 0:02:24]} 15. Nb3 {[%emt 0:00:57]} Ba7 {[%emt 0:00:31]} 16. cxd4 {[%emt 0:00:24]} Nxd4 {[%emt 0:00:03]} 17. Nbxd4 {[%emt 0:00:25]} Bxd4 {[%emt 0:00:02]} 18. Ba4 {[%emt 0:00:40]} Re7 {[%emt 0:00:29]} 19. Nxd4 {[%emt 0:00:13]} exd4 {[%emt 0:00:48]} 20. Bd2 {[%emt 0:00:32]} c5 {[%emt 0:00:01]} 21. Bb3 {[%emt 0:01:27]} Ne8 {[%emt 0:01:06]} 22. Qh5 {[%emt 0:00:51]} Rc8 {[%emt 0:00:26]} 23. Qg4 {[%emt 0:00:38]} Nf6 {[%emt 0:00:27]} 24. Qg3 {[%emt 0:00:12]} Kh8 {[%emt 0:01:02]} 25. Bc4 {[%emt 0:00:25]} Ne8 {[%emt 0:00:46]} 26. Bf4 {[%emt 0:00:46]} Rc6 {[%emt 0:00:02]} 27. Qh4 {[%emt 0:00:41]} Qd7 {[%emt 0:00:44]} 28. Bg5 {[%emt 0:01:08]} Re5 {[%emt 0:02:18]} 29. f4 {[%emt 0:00:35]} Rxg5 {[%emt 0:00:29]} 30. fxg5 {[%emt 0:00:02]} Rg6 {[%emt 0:00:02]} 31. gxh6 {[%emt 0:00:33]} Rxh6 {[%emt 0:00:02]} 32. Qf4 {[%emt 0:00:22]} Nd6 {[%emt 0:00:15]} 33. Rac1 {[%emt 0:00:17]} Rf6 {[%emt 0:00:49]} 34. Qg5 {[%emt 0:00:41]} Rg6 {[%emt 0:00:04]} 35. Qh5+ {[%emt 0:00:05]} Kg8 {[%emt 0:00:34]} 36. Bb3 {[%emt 0:01:08]} Rg3 {[%emt 0:00:32]} 37. Rxc5 {[%emt 0:01:41]} Rxd3 {[%emt 0:00:08]} 38. Bd5 {[%emt 0:00:10]} Rd2 {[%emt 0:00:33]} 39. Bxb7 {[%emt 0:00:16]} Qxb7 {[%emt 0:00:21]} 40. Rd5 {[%emt 0:00:07]} Qe7 {[%emt 0:00:37]} 41. e5 {[%emt 0:00:33]} Nc4 {[%emt 0:00:11]} 42. Re2 {[%emt 0:00:44]} Rxb2 {[%emt 0:00:37]} 43. Rxb2 {[%emt 0:00:02]} Nxb2 {[%emt 0:00:01]} 44. Qe2 {[%emt 0:00:17]} Na4 {[%emt 0:00:09]} 45. Qxa6 {[%emt 0:00:12]} b3 {[%emt 0:00:11]} 46. Qc8+ {[%emt 0:00:22]} Kh7 {[%emt 0:00:01]} 47. Qf5+ {[%emt 0:00:04]} g6 {[%emt 0:00:04]} 48. Qd3 {[%emt 0:00:17]} b2 {[%emt 0:00:06]} 49. Rb5 {[%emt 0:00:06]} Qc7 {[%emt 0:00:12]} 50. Kh2 {[%emt 0:00:14]} Qc3 {[%emt 0:00:04]} 51. Qf1 {[%emt 0:00:06]} d3 {[%emt 0:00:04]} 52. Qxf7+ {[%emt 0:00:01]} Kh6 {[%emt 0:00:01]} 53. Qf4+ {[%emt 0:00:02]} g5 {[%emt 0:00:20]} 54. Qxa4 {[%emt 0:00:01]} b1=Q {[%emt 0:01:00]} 55. Rxb1 {[%emt 0:00:02]} Qxe5+ {[%emt 0:00:00]} 56. Kh1 {[%emt 0:00:02]} d2 {[%emt 0:00:01]} 57. Qc6+ {[%emt 0:00:03]} Kh5 {[%emt 0:00:03]} 58. Qf3+ {[%emt 0:00:02]} Kh6 {[%emt 0:00:00]} 59. Rd1 {[%emt 0:00:00]} Qxa5 {[%emt 0:00:02]} 60. Qe2 {[%emt 0:00:02]} 1-0

[Event "European Women Rapid-ch 2023"]
[Site "Monaco"]
[Date "2024.01.14"]
[Round "7.11"]
[White "Agrest, Inna"]
[Black "Javakhishvili, Lela"]
[Result "1-0"]
[ECO "B06"]
[WhiteElo "2287"]
[BlackElo "2433"]
[Annotator "RC"]
[PlyCount "71"]
[EventDate "2023.12.19"]
[EventType "swiss"]
[EventCountry "MNC"]
[SourceTitle "playchess.com"]
[Source "ChessBase"]
[SourceQuality "1"]
[TimeControl "900+10"]

1. e4 {[%emt 0:00:02]} g6 {[%emt 0:00:03]} 2. d4 {[%emt 0:00:01]} Bg7 {[%emt 0:00:02]} 3. Nc3 {[%emt 0:00:02]} d6 {[%emt 0:00:02]} 4. Be3 {[%emt 0:00:07]} c6 {[%emt 0:00:04]} 5. Qd2 {[%emt 0:00:10]} Nd7 {[%emt 0:00:10]} 6. O-O-O {[%emt 0:00:06]} b5 {[%emt 0:00:17]} 7. h4 {[%emt 0:00:25]} h5 {[%emt 0:00:15]} 8. f3 {[%emt 0:00:06]} b4 {[%emt 0:00:10]} 9. Nce2 {[%emt 0:00:03]} a5 {[%emt 0:00:08]} 10. Kb1 {[%emt 0:00:36]} Nb6 {[%emt 0:00:06]} 11. Nc1 {[%emt 0:00:04]} Nf6 {[%emt 0:00:06]} 12. Nh3 {[%emt 0:00:23]} Bxh3 {[%emt 0:00:18]} 13. Rxh3 {[%emt 0:00:06]} O-O {[%emt 0:00:19]} 14. g4 {[%emt 0:02:55]} hxg4 {[%emt 0:00:50]} 15. fxg4 {[%emt 0:00:03]} Nxe4 {[%emt 0:00:04]} 16. Qg2 {[%emt 0:00:04]} d5 {[%emt 0:00:14]} 17. Bd3 {[%emt 0:00:07]} a4 {[%emt 0:01:19]} 18. Ne2 {[%emt 0:00:47]} b3 {[%emt 0:00:16]} 19. cxb3 {[%emt 0:00:56]} axb3 {[%emt 0:00:03]} 20. a3 {[%emt 0:01:01]} Ra4 {[%emt 0:00:37]} 21. Bxe4 {[%emt 0:01:27]} dxe4 {[%emt 0:00:03]} 22. Nc3 {[%emt 0:00:02]} Rc4 {[%emt 0:00:11]} 23. h5 {[%emt 0:00:51]} Nd5 {[%emt 0:03:36]} 24. Bc1 {[%emt 0:02:37]} Nxc3+ {[%emt 0:02:16]} 25. bxc3 {[%emt 0:00:03]} Qd5 {[%emt 0:00:02]} 26. Re1 {[%emt 0:02:47]} e5 {[%emt 0:01:52]} 27. h6 {[%emt 0:00:56]} Bf6 {[%emt 0:00:05]} 28. g5 {[%emt 0:00:08]} Bd8 {[%emt 0:03:00]} 29. h7+ {[%emt 0:00:45]} Kh8 {[%emt 0:00:05]} 30. Qxe4 {[%emt 0:00:33]} exd4 {[%emt 0:02:37]} 31. Qxd5 {[%emt 0:00:14]} cxd5 {[%emt 0:00:03]} 32. cxd4 {[%emt 0:01:17]} f6 {[%emt 0:00:37]} 33. Bf4 {[%emt 0:00:14]} Rxd4 {[%emt 0:00:11]} 34. Bd6 {[%emt 0:00:04]} Ba5 {[%emt 0:00:34]} 35. Bxf8 {[%emt 0:00:06]} Bxe1 {[%emt 0:00:04]} 36. Bg7+ {[%emt 0:00:05]} 1-0

[Event "European Women Rapid-ch 2023"]
[Site "Monaco"]
[Date "2024.01.14"]
[Round "7.12"]
[White "Calzetta Ruiz, Monica"]
[Black "Hoang, Thanh Trang"]
[Result "1/2-1/2"]
[ECO "C01"]
[WhiteElo "2241"]
[BlackElo "2382"]
[Annotator "RC"]
[PlyCount "83"]
[EventDate "2023.12.19"]
[EventType "swiss"]
[EventCountry "MNC"]
[SourceTitle "playchess.com"]
[Source "ChessBase"]
[SourceQuality "1"]
[TimeControl "900+10"]

1. e4 {[%emt 0:00:03]} e6 {[%emt 0:00:03]} 2. d4 {[%emt 0:00:13]} d5 {[%emt 0:00:04]} 3. Bd3 {[%emt 0:00:03]} dxe4 {[%emt 0:00:52]} 4. Bxe4 {[%emt 0:00:03]} Nf6 {[%emt 0:00:04]} 5. Bf3 {[%emt 0:00:02]} c5 {[%emt 0:00:09]} 6. Ne2 {[%emt 0:00:09]} Nc6 {[%emt 0:00:10]} 7. Be3 {[%emt 0:00:02]} cxd4 {[%emt 0:00:19]} 8. Nxd4 {[%emt 0:00:09]} Ne5 {[%emt 0:00:13]} 9. Nc3 {[%emt 0:00:06]} a6 {[%emt 0:00:18]} 10. O-O {[%emt 0:00:14]} Bb4 {[%emt 0:01:56]} 11. Qe2 {[%emt 0:05:36]} Nxf3+ {[%emt 0:02:29]} 12. Qxf3 {[%emt 0:00:03]} O-O {[%emt 0:00:11]} 13. Rad1 {[%emt 0:00:13]} Qc7 {[%emt 0:00:17]} 14. Bg5 {[%emt 0:01:38]} Qe5 {[%emt 0:02:30]} 15. Bxf6 {[%emt 0:02:17]} Qxf6 {[%emt 0:00:06]} 16. Qxf6 {[%emt 0:00:05]} gxf6 {[%emt 0:00:01]} 17. Na4 {[%emt 0:00:58]} e5 {[%emt 0:00:34]} 18. Nb6 {[%emt 0:00:15]} Rb8 {[%emt 0:01:50]} 19. Nb3 {[%emt 0:00:03]} Bg4 {[%emt 0:02:03]} 20. f3 {[%emt 0:01:54]} Be6 {[%emt 0:00:23]} 21. Nd7 {[%emt 0:00:17]} Bxd7 {[%emt 0:00:06]} 22. Rxd7 {[%emt 0:00:01]} Rfc8 {[%emt 0:00:07]} 23. c3 {[%emt 0:00:06]} Bf8 {[%emt 0:00:19]} 24. Rfd1 {[%emt 0:00:10]} Kg7 {[%emt 0:00:17]} 25. Kf1 {[%emt 0:00:02]} h5 {[%emt 0:00:30]} 26. Ke2 {[%emt 0:00:03]} Kg6 {[%emt 0:00:05]} 27. R1d5 {[%emt 0:00:27]} h4 {[%emt 0:00:57]} 28. Nd2 {[%emt 0:00:39]} Rc6 {[%emt 0:00:27]} 29. a4 {[%emt 0:01:04]} Rb6 {[%emt 0:00:37]} 30. Nc4 {[%emt 0:00:04]} Re6 {[%emt 0:00:09]} 31. a5 {[%emt 0:00:06]} e4 {[%emt 0:00:55]} 32. f4 {[%emt 0:00:05]} f5 {[%emt 0:00:02]} 33. Ne3 {[%emt 0:00:12]} Rf6 {[%emt 0:00:03]} 34. Rd1 {[%emt 0:01:15]} Bc5 {[%emt 0:00:19]} 35. Nd5 {[%emt 0:00:17]} Re6 {[%emt 0:00:06]} 36. b4 {[%emt 0:00:04]} Bf8 {[%emt 0:00:17]} 37. g3 {[%emt 0:00:16]} hxg3 {[%emt 0:00:02]} 38. hxg3 {[%emt 0:00:02]} Bg7 {[%emt 0:00:29]} 39. Ne7+ {[%emt 0:00:07]} Kf6 {[%emt 0:00:01]} 40. Nd5+ {[%emt 0:00:01]} Kg6 {[%emt 0:00:01]} 41. Ne7+ {[%emt 0:00:10]} Kf6 {[%emt 0:00:01]} 42. Nd5+ {[%emt 0:01:06]} 1/2-1/2

[Event "European Women Rapid-ch 2023"]
[Site "Monaco"]
[Date "2024.01.14"]
[Round "7.13"]
[White "Khurtsilava, Inga"]
[Black "Daulyte-Cornette, Deimante"]
[Result "0-1"]
[ECO "A47"]
[WhiteElo "2186"]
[BlackElo "2372"]
[Annotator "RC"]
[PlyCount "128"]
[EventDate "2023.12.19"]
[EventType "swiss"]
[EventCountry "MNC"]
[SourceTitle "playchess.com"]
[Source "ChessBase"]
[SourceQuality "1"]
[TimeControl "900+10"]

1. d4 {[%emt 0:00:01]} Nf6 {[%emt 0:00:02]} 2. Nf3 {[%emt 0:00:01]} b6 {[%emt 0:00:07]} 3. e3 {[%emt 0:00:02]} Bb7 {[%emt 0:00:04]} 4. Bd3 {[%emt 0:00:01]} g6 {[%emt 0:00:14]} 5. Nbd2 {[%emt 0:00:01]} Bg7 {[%emt 0:00:12]} 6. b3 {[%emt 0:00:07]} O-O {[%emt 0:00:06]} 7. Bb2 {[%emt 0:00:02]} c5 {[%emt 0:00:22]} 8. Qe2 {[%emt 0:00:35]} d6 {[%emt 0:00:25]} 9. Rd1 {[%emt 0:01:00]} Nbd7 {[%emt 0:01:22]} 10. O-O {[%emt 0:00:13]} Qc7 {[%emt 0:00:11]} 11. c4 {[%emt 0:00:04]} e5 {[%emt 0:00:24]} 12. d5 {[%emt 0:00:24]} b5 {[%emt 0:00:46]} 13. e4 {[%emt 0:01:40]} b4 {[%emt 0:00:38]} 14. Nh4 {[%emt 0:00:53]} a5 {[%emt 0:00:19]} 15. g4 {[%emt 0:02:26]} a4 {[%emt 0:01:24]} 16. Bb1 {[%emt 0:00:17]} axb3 {[%emt 0:00:30]} 17. axb3 {[%emt 0:00:02]} Bc8 {[%emt 0:01:03]} 18. f3 {[%emt 0:02:00]} Qd8 {[%emt 0:00:52]} 19. Ng2 {[%emt 0:00:49]} Re8 {[%emt 0:03:17]} 20. Rf2 {[%emt 0:00:03]} Nf8 {[%emt 0:00:23]} 21. Nf1 {[%emt 0:00:01]} h5 {[%emt 0:00:42]} 22. g5 {[%emt 0:01:44]} N6h7 {[%emt 0:00:35]} 23. h4 {[%emt 0:00:02]} f6 {[%emt 0:00:26]} 24. gxf6 {[%emt 0:01:39]} Bxf6 {[%emt 0:00:02]} 25. Bc1 {[%emt 0:00:27]} Bxh4 {[%emt 0:00:17]} 26. Nxh4 {[%emt 0:00:20]} Qxh4 {[%emt 0:00:02]} 27. Rh2 {[%emt 0:00:01]} Qf6 {[%emt 0:00:11]} 28. Qg2 {[%emt 0:00:09]} Kh8 {[%emt 0:00:37]} 29. Kh1 {[%emt 0:00:58]} Re7 {[%emt 0:00:13]} 30. Ng3 {[%emt 0:01:26]} Rf7 {[%emt 0:00:16]} 31. Rf1 {[%emt 0:00:04]} h4 {[%emt 0:00:40]} 32. Ne2 {[%emt 0:00:11]} g5 {[%emt 0:00:08]} 33. f4 {[%emt 0:00:54]} h3 {[%emt 0:00:19]} 34. Qg1 {[%emt 0:01:10]} gxf4 {[%emt 0:01:32]} 35. Nxf4 {[%emt 0:00:03]} Rg7 {[%emt 0:00:07]} 36. Qf2 {[%emt 0:00:06]} Ra1 {[%emt 0:00:33]} 37. Bb2 {[%emt 0:00:10]} Raa7 {[%emt 0:01:01]} 38. Nxh3 {[%emt 0:00:18]} Qxf2 {[%emt 0:00:15]} 39. Rfxf2 {[%emt 0:00:16]} Rg3 {[%emt 0:00:21]} 40. Ng5 {[%emt 0:00:13]} Kg8 {[%emt 0:00:22]} 41. Nxh7 {[%emt 0:00:34]} Nxh7 {[%emt 0:00:02]} 42. Rhg2 {[%emt 0:00:04]} Rxg2 {[%emt 0:00:16]} 43. Rxg2+ {[%emt 0:00:04]} Kf7 {[%emt 0:00:15]} 44. Rf2+ {[%emt 0:00:30]} Kg6 {[%emt 0:00:03]} 45. Rg2+ {[%emt 0:00:07]} Kh5 {[%emt 0:00:09]} 46. Rh2+ {[%emt 0:00:07]} Kg4 {[%emt 0:00:10]} 47. Bc2 {[%emt 0:00:03]} Kf3 {[%emt 0:00:15]} 48. Bd1+ {[%emt 0:00:12]} Ke3 {[%emt 0:00:18]} 49. Bc1+ {[%emt 0:00:17]} Kxe4 {[%emt 0:00:05]} 50. Bc2+ {[%emt 0:00:04]} Kf3 {[%emt 0:00:02]} 51. Bd1+ {[%emt 0:00:28]} Kg3 {[%emt 0:00:22]} 52. Rg2+ {[%emt 0:00:04]} Kh4 {[%emt 0:00:02]} 53. Rh2+ {[%emt 0:00:03]} Bh3 {[%emt 0:00:04]} 54. Bd2 {[%emt 0:00:22]} Ra1 {[%emt 0:00:16]} 55. Be1+ {[%emt 0:00:07]} Kg5 {[%emt 0:00:00]} 56. Rxh3 {[%emt 0:00:02]} Rxd1 {[%emt 0:00:02]} 57. Rxh7 {[%emt 0:00:24]} Rxe1+ {[%emt 0:00:01]} 58. Kg2 {[%emt 0:00:00]} Re3 {[%emt 0:00:09]} 59. Rd7 {[%emt 0:00:02]} Rxb3 {[%emt 0:00:02]} 60. Rxd6 {[%emt 0:00:01]} Rc3 {[%emt 0:00:02]} 61. Rd8 {[%emt 0:00:15]} Rxc4 {[%emt 0:00:07]} 62. d6 {[%emt 0:00:32]} Kf6 {[%emt 0:00:02]} 63. Kf3 {[%emt 0:00:10]} Ke6 {[%emt 0:00:05]} 64. Ke3 {[%emt 0:00:00]} Rd4 {[%emt 0:00:04]} 0-1